bitfinex-derivatives/quotes_BNBF0:USTF0_20251002
["timestamp","ask_amount","ask_price","bid_price","bid_amount"]
[1759402111526,0.48851183,1044.0,1043.7,2.4290908]
[1759402111724,0.00755929,1044.0,1043.7,1.13562795]
[1759402112228,0.00755929,1044.0,1043.8,1.27347852]
[1759402112428,0.00755929,1044.0,1043.9,1.27347852]
[1759402115327,0.00755929,1044.0,1043.7,1.13562795]
[1759402118433,0.00755929,1044.0,1043.9,1.27326297]
[1759402118932,0.00755929,1044.0,1043.7,1.13562795]
[1759402121529,0.00755929,1044.0,1043.7,2.4103387]
[1759402124436,0.00755929,1044.0,1043.9,1.27471075]
[1759402125135,0.00755929,1044.0,1043.7,1.13562795]
[1759402125334,0.00755929,1044.0,1043.9,1.27367896]
[1759402127232,0.00755929,1044.0,1043.7,1.13562795]
[1759402127835,0.85533125,1045.8,1043.7,1.13562795]
[1759402128036,0.85533125,1045.8,1043.9,1.27399703]
[1759402128237,0.85533125,1045.8,1044.0,1.14361726]
[1759402130937,0.85533125,1045.8,1044.1,0.84948451]
[1759402132740,0.85533125,1046.0,1044.0,1.14361726]
[1759402134637,0.85533125,1046.1,1044.3,0.84948451]
[1759402134841,0.85533125,1046.1,1044.5,0.84948451]
[1759402135241,0.85533125,1046.0,1044.6,0.84948451]
[1759402135441,0.85533125,1045.9,1044.7,1.23403459]
[1759402138143,0.85533125,1046.0,1044.7,1.23403459]
[1759402138343,0.1663468,1047.1,1044.8,0.84948451]
[1759402138344,0.85533125,1046.3,1044.8,0.84948451]
[1759402139245,0.85533125,1046.3,1044.7,2.0835191]
[1759402142651,0.85533125,1046.5,1044.7,2.0835191]
[1759402143851,0.85533125,1046.5,1044.7,1.23403459]
[1759402145351,0.85533125,1046.6,1044.7,1.23403459]
[1759402146252,0.85533125,1046.5,1044.7,2.0835191]
[1759402147350,0.85533125,1046.5,1044.7,1.23403459]
[1759402148055,0.85533125,1046.5,1044.7,2.0835191]
[1759402148256,0.85533125,1046.5,1044.7,1.23403459]
[1759402148458,0.85533125,1046.0,1044.7,1.23403459]
[1759402148656,0.1663468,1047.1,1044.7,1.23403459]
[1759402148657,0.85533125,1045.8,1044.7,1.23403459]
[1759402151161,0.85533125,1045.9,1044.7,1.23403459]
[1759402151858,0.85533125,1046.4,1044.7,1.23403459]
[1759402154258,0.85533125,1046.6,1044.7,1.23403459]
[1759402156161,0.85533125,1046.3,1044.7,1.23403459]
[1759402157768,0.85533125,1046.2,1044.7,1.23403459]
[1759402158270,0.85533125,1046.1,1044.7,1.23403459]
[1759402158769,0.85533125,1046.5,1044.7,1.23403459]
[1759402159266,0.85533125,1046.3,1044.7,1.23403459]
[1759402162573,0.1663468,1047.1,1044.7,1.23403459]
[1759402162574,0.85533125,1046.2,1044.7,1.23403459]
[1759402162873,0.85533125,1046.0,1044.7,1.23403459]
[1759402164770,0.85533125,1045.9,1044.7,1.23403459]
[1759402165677,0.85533125,1045.9,1044.8,0.991]
[1759402167976,0.85533125,1045.8,1044.9,1.492]
[1759402168177,0.85533125,1045.8,1045.0,1.37795235]
[1759402168476,0.85533125,1045.9,1045.0,1.37795235]
[1759402171273,0.85533125,1045.8,1045.0,1.37795235]
[1759402173876,0.85533125,1046.1,1045.0,1.37795235]
[1759402174080,0.85533125,1046.2,1045.0,1.37795235]
[1759402175777,1.28442671,1046.5,1045.0,1.37795235]
[1759402175982,0.1663468,1047.1,1045.0,1.37795235]
[1759402176786,0.85520815,1045.8,1045.0,1.37795235]
[1759402178082,0.85520815,1045.7,1045.0,1.37795235]
[1759402179388,0.85520815,1045.7,1044.9,1.492]
[1759402179680,0.85520815,1045.6,1044.9,1.492]
[1759402180186,0.85520815,1045.4,1044.9,1.492]
[1759402180486,0.85520815,1045.3,1044.9,1.492]
[1759402182680,0.85520815,1045.4,1044.9,1.492]
[1759402183882,0.85520815,1045.4,1044.9,2.80237644]
[1759402184790,0.85520815,1045.3,1044.9,2.80237644]
[1759402185289,0.85520815,1045.4,1044.9,2.80237644]
[1759402186588,0.52652906,1045.3,1044.9,2.80237644]
[1759402186789,0.52652906,1045.2,1044.9,2.80237644]
[1759402186985,0.52652906,1045.1,1044.9,2.80237644]
[1759402187288,0.52652906,1045.0,1044.9,2.80237644]
[1759402190788,0.52652906,1045.0,1044.9,2.7699331]
[1759402191992,0.85520815,1045.8,1044.9,2.7699331]
[1759402192190,0.5260914,1045.7,1044.9,2.7699331]
[1759402192388,0.5260914,1045.6,1044.9,2.7699331]
[1759402192588,0.16651116,1045.8,1044.9,2.7699331]
[1759402192589,0.5260914,1045.5,1044.9,2.7699331]
[1759402192788,0.5260914,1045.4,1044.9,2.7699331]
[1759402192988,0.5260914,1045.3,1044.9,2.7699331]
[1759402193192,0.5260914,1045.2,1044.9,2.7699331]
[1759402193487,1.02171931,1045.8,1044.9,2.7699331]
[1759402193488,0.16651116,1045.8,1044.9,2.7699331]
[1759402193687,0.52602928,1045.7,1044.9,2.7699331]
[1759402193889,0.52602928,1045.6,1044.9,2.7699331]
[1759402194088,0.52602928,1045.5,1044.9,1.492]
[1759402194297,0.52602928,1045.4,1045.0,1.30462434]
[1759402194488,1.02171931,1045.8,1045.0,1.30462434]
[1759402194489,0.52602928,1045.3,1045.0,1.30462434]
[1759402194696,0.52602928,1045.2,1045.1,1.132]
[1759402198496,0.85520815,1046.5,1045.1,1.132]
[1759402198799,0.16648049,1046.0,1045.1,1.132]
[1759402198997,0.52604315,1045.9,1045.1,1.132]
[1759402199197,0.52604315,1045.8,1045.1,1.132]
[1759402199401,0.52604315,1045.7,1045.1,1.132]
[1759402199605,0.52604315,1045.6,1045.1,1.132]
[1759402199905,0.52604315,1045.5,1045.1,1.132]
[1759402200208,0.52604315,1045.4,1045.1,1.132]
[1759402200508,0.16643272,1046.0,1045.1,1.132]
[1759402200708,0.52617721,1045.9,1045.1,1.132]
[1759402200907,0.52617721,1045.8,1045.1,1.132]
[1759402201104,0.52617721,1045.7,1045.1,1.132]
[1759402201309,0.52617721,1045.6,1045.1,1.132]
[1759402201508,0.52617721,1045.5,1045.1,1.132]
[1759402201809,0.52617721,1045.4,1045.1,1.132]
[1759402202006,0.85520815,1046.1,1045.1,1.132]
[1759402202207,0.69279101,1046.0,1045.1,1.132]
[1759402202406,0.52632167,1045.9,1045.1,1.132]
[1759402202608,0.16646934,1046.0,1045.1,1.132]
[1759402202609,0.52632167,1045.8,1045.1,1.132]
[1759402202812,0.52632167,1045.7,1045.1,1.132]
[1759402203011,0.52632167,1045.6,1045.1,1.132]
[1759402203211,0.52632167,1045.5,1045.1,1.132]
[1759402203412,0.52632167,1045.4,1045.1,1.132]
[1759402203609,0.85520815,1045.9,1045.1,1.132]
[1759402203812,0.52668296,1045.8,1045.1,1.132]
[1759402204010,0.52668296,1045.7,1045.1,1.132]
[1759402204309,0.52668296,1045.6,1045.1,1.132]
[1759402204512,1.02167749,1046.0,1045.1,1.132]
[1759402204513,0.52668296,1045.5,1045.1,1.132]
[1759402204710,1.02167749,1046.0,1045.1,1.132]
[1759402204711,0.52668296,1045.4,1045.1,1.132]
[1759402204909,0.52668296,1045.3,1045.1,1.132]
[1759402205213,0.85520815,1045.9,1045.1,1.132]
[1759402205414,0.52714699,1045.8,1045.1,1.132]
[1759402205614,0.52714699,1045.7,1045.1,1.132]
[1759402205813,0.52714699,1045.6,1045.1,1.132]
[1759402206114,0.52714699,1045.5,1045.1,1.132]
[1759402206314,0.52714699,1045.4,1045.1,1.132]
[1759402206513,0.16646934,1046.0,1045.1,1.132]
[1759402206514,0.52714699,1045.3,1045.1,1.132]
[1759402206715,0.52714699,1045.2,1045.1,1.132]
[1759402206915,0.52714699,1045.9,1045.1,1.132]
[1759402207213,0.52714699,1045.8,1045.1,1.132]
[1759402207415,0.52714699,1045.7,1045.1,1.132]
[1759402207616,0.52714699,1045.6,1045.1,1.132]
[1759402207816,0.52714699,1045.5,1045.2,1.305]
[1759402208011,0.52714699,1045.4,1045.3,1.24194515]
[1759402219834,0.52714699,1045.4,1045.3,1.21440113]
[1759402221331,0.52714699,1045.4,1045.2,1.305]
[1759402221634,0.52714699,1045.3,1045.2,1.305]
[1759402239640,0.52714699,1045.3,1045.2,2.50962097]
[1759402249950,0.52714699,1045.3,1045.2,1.20462097]
[1759402254153,0.52714699,1045.3,1045.0,1.172]
[1759402254351,0.52714699,1045.2,1045.0,1.172]
[1759402254557,0.52714699,1045.1,1045.0,1.172]
[1759402262458,1.38235514,1045.1,1044.8,1.082]
[1759402262761,0.52714699,1045.0,1044.8,1.082]
[1759402262957,0.52714699,1044.9,1044.8,1.082]
[1759402263161,0.85520815,1045.1,1044.8,1.082]
[1759402263865,0.85520815,1045.2,1044.8,1.082]
[1759402265067,0.85520815,1045.4,1044.8,1.082]
[1759402265571,0.85520815,1045.3,1044.8,1.082]
[1759402268070,0.85520815,1045.2,1044.8,1.082]
[1759402268475,0.85520815,1045.1,1044.8,1.082]
[1759402271073,0.85520815,1045.2,1044.8,1.082]
[1759402271278,0.85520815,1045.1,1044.8,1.082]
[1759402271578,0.85520815,1045.1,1044.5,1.21027041]
[1759402272473,0.85520815,1045.5,1044.5,1.21027041]
[1759402273980,0.85520815,1045.5,1044.6,1.092]
[1759402274878,0.85520815,1045.4,1044.6,1.092]
[1759402275276,0.85520815,1045.3,1044.6,1.092]
[1759402275581,0.85520815,1045.2,1044.6,1.092]
[1759402275781,0.85520815,1045.1,1044.6,1.092]
[1759402276279,0.85520815,1045.0,1044.6,1.092]
[1759402276984,0.85520815,1045.3,1044.6,1.092]
[1759402277680,1.28281222,1045.6,1044.6,1.092]
[1759402277681,0.85520815,1045.6,1044.6,1.092]
[1759402280282,0.85520815,1045.5,1044.6,1.092]
[1759402280481,0.85520815,1045.6,1044.6,1.092]
[1759402281282,0.85520815,1045.5,1044.6,1.092]
[1759402281484,0.85520815,1045.4,1044.6,1.092]
[1759402281784,0.85520815,1045.5,1044.6,1.092]
[1759402282287,0.85520815,1045.4,1044.6,1.092]
[1759402283083,0.85520815,1045.5,1044.6,1.092]
[1759402283483,0.85520815,1045.4,1044.6,1.092]
[1759402283989,0.85520815,1045.5,1044.6,1.092]
[1759402284290,0.85520815,1045.4,1044.6,1.092]
[1759402285585,0.85520815,1045.5,1044.6,1.092]
[1759402285788,0.85520815,1045.6,1044.6,1.092]
[1759402286089,0.85520815,1045.6,1044.7,1.30242354]
[1759402286289,0.85520815,1045.6,1044.6,1.092]
[1759402287699,0.85520815,1045.6,1044.7,1.30242354]
[1759402288490,0.85520815,1045.5,1044.7,1.30242354]
[1759402289287,0.85520815,1045.6,1044.7,1.30242354]
[1759402289789,0.85520815,1045.6,1044.6,1.092]
[1759402290793,0.85520815,1045.5,1044.6,1.092]
[1759402291089,0.85520815,1045.5,1044.7,1.31183912]
[1759402293690,0.85520815,1045.6,1044.7,1.31183912]
[1759402295396,0.85520815,1045.7,1044.7,1.31183912]
[1759402297706,0.85520815,1045.7,1044.7,2.44783912]
[1759402297898,0.85520815,1045.6,1044.7,2.44783912]
[1759402298798,0.85520815,1045.7,1044.7,2.44783912]
[1759402302797,0.85520815,1045.8,1044.7,2.44783912]
[1759402303904,0.85520815,1045.9,1044.7,2.44783912]
[1759402305400,1.02167749,1046.0,1044.7,2.44783912]
[1759402308905,0.16646934,1046.0,1044.7,2.44783912]
[1759402312205,0.16646934,1046.0,1044.8,1.49]
[1759402315415,1.02167749,1046.0,1044.8,1.49]
[1759402316511,1.02167749,1046.0,1044.9,1.18313363]
[1759402319417,0.16646934,1046.0,1044.9,1.18313363]
[1759402320119,0.16646934,1046.0,1044.8,1.49]
[1759402320120,0.16646934,1046.0,1045.0,1.21062213]
[1759402325224,1.02167749,1046.0,1045.0,1.21062213]
[1759402325920,0.85520815,1045.9,1045.0,1.21062213]
[1759402327320,0.85520815,1045.9,1045.1,1.21541984]
[1759402328826,1.02167749,1046.0,1045.1,1.21541984]
[1759402329230,1.02167749,1046.0,1045.2,1.229]
[1759402330122,0.85520815,1045.9,1045.2,1.229]
[1759402331028,0.85520815,1045.9,1045.3,1.260133]
[1759402333828,0.16646934,1046.0,1045.3,1.260133]
[1759402333829,1.02167749,1046.0,1045.3,1.260133]
[1759402336329,0.85520815,1045.9,1045.3,1.260133]
[1759402338933,1.02167749,1046.0,1045.3,1.260133]
[1759402341632,0.85520815,1045.9,1045.3,1.260133]
[1759402348039,0.16646934,1046.0,1045.3,1.260133]
[1759402350543,0.16646934,1046.0,1045.4,1.122]
[1759402354644,0.16646934,1046.0,1045.5,1.17548254]
[1759402357654,1.02167749,1046.0,1045.5,1.17548254]
[1759402358143,1.02167749,1046.0,1045.6,1.16386048]
[1759402358549,1.02167749,1046.0,1045.4,1.122]
[1759402358749,1.02167749,1046.0,1045.5,1.16386048]
[1759402358949,0.16646934,1046.0,1045.5,1.16386048]
[1759402359350,1.02167749,1046.0,1045.5,1.16386048]
[1759402360346,1.02167749,1046.0,1045.6,1.16074096]
[1759402362149,1.02167749,1046.0,1045.4,1.122]
[1759402362661,1.02167749,1046.0,1044.8,1.49]
[1759402362854,1.02167749,1046.0,1044.9,1.1477418]
[1759402363853,1.02167749,1046.0,1045.0,1.1477418]
[1759402364650,1.02167749,1046.0,1045.1,1.359]
[1759402367556,1.02167749,1046.0,1045.2,0.992]
[1759402367754,1.02167749,1046.0,1045.3,1.18493785]
[1759402368152,0.85520815,1045.9,1045.3,1.18493785]
[1759402368957,0.85520815,1045.9,1045.4,1.18493785]
[1759402369857,1.02167749,1046.0,1045.4,1.18493785]
[1759402370055,1.02167749,1046.0,1045.5,1.16399109]
[1759402370455,0.16646934,1046.0,1045.6,1.18530702]
[1759402371460,0.85520815,1046.1,1045.6,1.18530702]
[1759402372461,0.85520815,1046.1,1045.7,1.17725727]
[1759402373462,0.85520815,1046.1,1045.7,1.16880933]
[1759402374060,0.85520815,1046.1,1045.7,1.14604604]
[1759402375062,1.02161222,1046.2,1045.7,1.14604604]
[1759402376762,0.85520815,1046.1,1045.7,1.14604604]
[1759402378368,1.02161222,1046.2,1045.2,0.992]
[1759402378570,0.85520815,1046.1,1045.2,0.992]
[1759402379063,0.85520815,1046.1,1045.3,1.13810641]
[1759402379671,0.85520815,1046.1,1045.4,1.118]
[1759402380266,0.85520815,1045.9,1045.4,1.118]
[1759402380468,0.85520815,1045.8,1045.4,1.118]
[1759402381471,0.85520815,1045.7,1045.4,1.118]
[1759402382572,0.85520815,1045.8,1045.4,1.118]
[1759402382771,0.85520815,1045.7,1045.4,1.118]
[1759402384370,0.85520815,1045.9,1045.4,1.118]
[1759402391275,1.02161222,1046.2,1045.4,1.118]
[1759402392775,1.02161222,1046.2,1045.3,1.13810641]
[1759402393880,0.85520815,1046.1,1045.3,1.13810641]
[1759402394877,0.85520815,1046.1,1045.4,1.003]
[1759402397384,1.02161222,1046.2,1045.4,1.003]
[1759402401082,0.85520815,1045.6,1045.4,1.003]
[1759402401388,0.85520815,1045.5,1045.4,1.003]
[1759402410194,0.85520815,1045.6,1045.4,1.003]
[1759402410895,0.85520815,1045.8,1045.4,1.003]
[1759402414597,0.85520815,1045.9,1045.4,1.003]
[1759402415596,0.85520815,1045.8,1045.4,1.003]
[1759402419002,0.85520815,1045.7,1045.4,1.003]
[1759402419502,0.85520815,1045.8,1045.4,1.003]
[1759402420101,0.85520815,1045.7,1045.4,1.003]
[1759402422301,0.16640407,1046.2,1045.4,1.003]
[1759402422302,0.85520815,1045.8,1045.4,1.003]
[1759402426909,0.85520815,1045.6,1045.4,1.003]
[1759402427308,0.85520815,1045.7,1045.4,1.003]
[1759402428810,0.85520815,1045.8,1045.4,1.003]
[1759402429309,0.85520815,1045.8,1045.2,1.17141114]
[1759402431015,0.85520815,1045.8,1045.3,1.142]
[1759402438724,0.85520815,1045.7,1045.3,1.142]
[1759402438923,0.85520815,1045.8,1045.3,1.142]
[1759402440623,0.85520815,1045.9,1045.3,1.142]
[1759402441326,1.02161222,1046.2,1045.3,1.142]
[1759402443129,1.02161222,1046.2,1045.4,1.09]
[1759402443325,1.02161222,1046.2,1045.5,1.23724134]
[1759402443727,0.16640407,1046.2,1045.5,1.23724134]
[1759402450532,0.85520815,1046.2,1045.5,1.23724134]
[1759402450734,1.02157722,1046.6,1045.5,1.23724134]
[1759402451535,0.16636907,1046.6,1045.5,1.23724134]
[1759402454137,1.02157722,1046.6,1045.5,1.23724134]
[1759402455433,0.85520815,1046.5,1045.5,1.23724134]
[1759402455733,1.02157722,1046.6,1045.5,1.23724134]
[1759402456634,0.16636907,1046.6,1045.5,1.23724134]
[1759402457539,0.85520815,1046.5,1045.5,1.23724134]
[1759402458836,1.02157722,1046.6,1045.5,1.23724134]
[1759402462744,0.85520815,1046.4,1045.5,1.23724134]
[1759402462944,0.85520815,1046.3,1045.5,1.23724134]
[1759402463957,0.85520815,1046.4,1045.5,1.23724134]
[1759402468750,0.85520815,1046.3,1045.6,1.135]
[1759402471052,0.85520815,1046.2,1045.6,1.135]
[1759402472255,0.85520815,1046.1,1045.6,1.135]
[1759402472459,0.85520815,1046.0,1045.6,1.135]
[1759402472655,0.85520815,1046.1,1045.6,1.135]
[1759402474261,0.85520815,1046.2,1045.6,1.135]
[1759402474659,0.85520815,1046.1,1045.6,1.135]
[1759402476860,0.85520815,1046.0,1045.6,1.135]
[1759402478758,1.28281222,1046.2,1045.6,1.135]
[1759402478759,0.85520815,1046.1,1045.6,1.135]
[1759402479562,0.85520815,1046.0,1045.6,1.135]
[1759402479761,0.85520815,1046.1,1045.6,1.135]
[1759402481964,0.85520815,1046.0,1045.6,1.135]
[1759402483264,0.85520815,1045.9,1045.6,1.135]
[1759402485668,0.85520815,1045.8,1045.6,1.135]
[1759402488067,0.85520815,1045.9,1045.6,1.135]
[1759402488567,0.85520815,1046.0,1045.6,1.135]
[1759402488767,0.85520815,1045.9,1045.6,1.135]
[1759402488964,0.85520815,1045.7,1045.6,1.135]
[1759402492564,0.85520815,1045.7,1045.5,2.26624134]
[1759402495663,1.28281222,1045.9,1045.5,2.26624134]
[1759402495664,0.85520815,1045.8,1045.5,2.26624134]
[1759402496564,0.85520815,1045.9,1045.5,2.26624134]
[1759402499666,0.85520815,1045.8,1045.5,1.029]
[1759402502471,0.85520815,1045.7,1045.5,1.029]
[1759402502668,0.85520815,1045.6,1045.5,1.029]
[1759402504370,0.85520815,1045.7,1045.5,1.029]
[1759402505273,0.85520815,1045.6,1045.5,1.029]
[1759402505574,0.85520815,1045.6,1045.4,1.362]
[1759402508478,0.85520815,1045.7,1045.4,1.362]
[1759402510778,0.85520815,1045.8,1045.4,1.362]
[1759402510977,0.85520815,1045.9,1045.4,1.362]
[1759402511174,0.85520815,1045.8,1045.4,1.362]
[1759402511776,0.85520815,1046.0,1045.4,1.362]
[1759402511974,0.85520815,1046.0,1045.3,1.13324106]
[1759402513376,0.85520815,1045.9,1045.3,1.13324106]
[1759402513575,0.85520815,1045.7,1045.3,1.13324106]
[1759402513982,0.85520815,1045.7,1045.2,1.424]
[1759402514278,0.85520815,1045.7,1045.2,2.846]
[1759402514977,0.85520815,1045.6,1045.2,2.846]
[1759402515477,0.85520815,1045.5,1045.2,2.846]
[1759402515680,0.85520815,1045.4,1045.2,2.846]
[1759402517477,0.85520815,1045.6,1045.2,2.846]
[1759402517878,0.85520815,1045.5,1045.2,2.846]
[1759402518781,0.85520815,1045.3,1045.2,2.846]
[1759402519385,1.28281222,1045.5,1045.2,2.846]
[1759402519587,0.85469931,1045.3,1045.2,2.846]
[1759402520184,1.28281222,1045.4,1045.2,2.846]
[1759402520386,0.85476011,1045.3,1045.2,2.846]
[1759402523689,1.28281222,1045.4,1045.2,2.846]
[1759402523991,0.85494124,1045.5,1045.2,2.846]
[1759402524992,0.85494124,1045.5,1045.2,1.422]
[1759402525592,0.85494124,1045.4,1045.2,1.422]
[1759402528395,0.85494124,1045.5,1045.2,1.422]
[1759402528994,0.85494124,1045.3,1045.2,1.422]
[1759402530195,1.28281222,1045.5,1045.2,1.422]
[1759402531201,0.85524331,1045.3,1045.2,1.422]
[1759402532099,1.28281222,1045.4,1045.2,1.422]
[1759402532399,2.13802037,1045.7,1044.9,1.355]
[1759402532603,1.28280545,1045.0,1044.9,1.355]
[1759402533005,1.28280545,1045.1,1044.9,1.355]
[1759402533805,0.85498546,1045.0,1044.9,1.355]
[1759402534203,0.85498546,1045.2,1044.9,1.355]
[1759402534507,0.85498546,1045.0,1044.9,1.355]
[1759402534707,1.28280545,1045.2,1044.9,1.355]
[1759402535006,1.28280545,1045.1,1044.9,1.355]
[1759402535207,0.85489896,1045.0,1044.9,1.355]
[1759402536909,2.13802037,1046.3,1044.9,1.355]
[1759402537106,2.13802037,1045.4,1044.9,1.355]
[1759402537409,1.28155854,1045.1,1044.9,1.355]
[1759402537809,1.28155854,1045.0,1044.9,1.355]
[1759402538513,1.28155854,1045.1,1044.9,1.355]
[1759402538811,0.85345149,1045.0,1044.9,1.355]
[1759402539011,0.85345149,1045.1,1044.9,1.355]
[1759402539312,0.85345149,1045.2,1044.9,1.355]
[1759402539807,0.85345149,1045.3,1044.9,1.355]
[1759402540513,0.85345149,1045.1,1044.9,1.355]
[1759402541808,1.28155854,1045.1,1044.9,1.355]
[1759402542714,0.85287255,1045.0,1044.9,1.355]
[1759402542912,0.85287255,1045.1,1044.9,1.355]
[1759402545415,0.85287255,1045.2,1044.9,1.355]
[1759402545719,0.85287255,1045.1,1044.9,1.355]
[1759402547919,0.85287255,1045.0,1044.9,1.355]
[1759402548622,1.28155854,1045.2,1044.9,1.355]
[1759402548823,0.85296813,1045.0,1044.9,1.355]
[1759402549521,0.85296813,1045.2,1044.9,1.355]
[1759402552126,0.85296813,1045.3,1044.9,1.355]
[1759402553029,0.85296813,1045.2,1044.9,1.355]
[1759402555129,0.85296813,1045.1,1044.9,1.355]
[1759402555628,0.85296813,1045.2,1044.9,1.355]
[1759402557734,0.85296813,1045.1,1044.9,1.355]
[1759402558329,0.85296813,1045.0,1044.9,1.355]
[1759402560935,1.28155854,1045.1,1044.9,1.355]
[1759402561133,1.28155854,1045.0,1044.9,1.355]
[1759402562734,2.13802037,1045.9,1044.9,1.355]
[1759402562936,2.13802037,1045.9,1044.9,0.03867035]
[1759402562937,2.13802037,1045.5,1044.9,0.03867035]
[1759402563837,1.28137113,1045.1,1044.9,0.03867035]
[1759402566839,1.28137113,1045.0,1044.9,0.03867035]
[1759402567139,1.28137113,1045.0,1044.3,2.59213532]
[1759402567340,0.85448173,1044.8,1044.3,2.59213532]
[1759402568241,0.85448173,1044.7,1044.3,2.59213532]
[1759402568940,0.85448173,1044.8,1044.3,2.59213532]
[1759402569441,0.85448173,1044.7,1044.3,2.59213532]
[1759402570135,0.85448173,1044.8,1044.3,2.59213532]
[1759402572138,0.85448173,1044.7,1044.3,2.59213532]
[1759402572344,0.85448173,1044.9,1044.3,2.59213532]
[1759402572544,0.85448173,1044.9,1044.3,1.443]
[1759402573746,0.85448173,1045.0,1044.3,1.443]
[1759402577348,0.85448173,1044.9,1044.3,1.443]
[1759402579446,0.85448173,1044.9,1044.2,1.15779325]
[1759402580846,0.85448173,1044.8,1044.2,1.15779325]
[1759402581745,0.85448173,1044.7,1044.2,1.15779325]
[1759402585350,0.85448173,1044.6,1044.2,1.15779325]
[1759402585647,0.85448173,1044.8,1044.2,1.15779325]
[1759402586451,0.85448173,1044.7,1044.2,1.15779325]
[1759402587254,0.85448173,1044.6,1044.2,1.15779325]
[1759402588555,0.85448173,1044.4,1044.2,1.15779325]
[1759402589451,0.85448173,1044.3,1044.2,1.15779325]
[1759402590352,0.85448173,1044.3,1044.0,2.646]
[1759402591655,0.85448173,1044.3,1044.1,1.15304377]
[1759402591952,0.85448173,1044.4,1044.1,1.15304377]
[1759402592355,0.85448173,1044.6,1044.1,1.15304377]
[1759402592555,0.85448173,1044.8,1044.1,1.15304377]
[1759402596055,0.1666527,1044.7,1044.1,1.15304377]
[1759402597560,1.02113443,1044.7,1044.1,1.15304377]
[1759402598860,0.85448173,1044.6,1044.1,1.15304377]
[1759402599155,0.85448173,1044.5,1044.1,1.15304377]
[1759402599860,0.85448173,1044.5,1044.0,2.646]
[1759402605461,0.85448173,1044.4,1044.0,2.646]
[1759402608564,0.85448173,1044.5,1044.0,2.646]
[1759402608868,1.02113443,1044.7,1044.0,2.646]
[1759402609968,0.1666527,1044.7,1044.0,2.646]
[1759402610368,1.02113443,1044.7,1044.0,2.646]
[1759402612571,0.1666527,1044.7,1044.0,2.646]
[1759402613269,1.02113443,1044.7,1044.0,2.646]
[1759402613468,1.02113443,1044.7,1044.0,1.435]
[1759402615471,1.02113443,1044.7,1044.1,1.283]
[1759402616167,0.1666527,1044.7,1044.1,1.283]
[1759402618170,1.02113443,1044.7,1044.1,1.283]
[1759402618968,0.1666527,1044.7,1044.1,1.283]
[1759402622674,1.02113443,1044.7,1044.1,1.283]
[1759402622875,0.1666527,1044.7,1044.1,1.283]
[1759402624173,1.28849905,1044.2,1044.1,1.283]
[1759402626677,1.28849905,1044.3,1044.1,1.283]
[1759402628778,0.85776427,1044.2,1044.1,1.283]
[1759402630282,0.85776427,1044.3,1044.1,1.283]
[1759402632583,0.85776427,1044.2,1044.1,1.283]
[1759402633287,1.28849905,1044.5,1044.1,1.283]
[1759402633288,0.85776427,1044.3,1044.1,1.283]
[1759402633488,0.85776427,1044.2,1044.1,1.283]
[1759402634589,0.85776427,1044.6,1044.1,1.283]
[1759402634790,0.1666527,1044.7,1044.1,1.283]
[1759402635489,0.1666527,1044.7,1043.6,1.068]
[1759402635686,1.02441697,1044.7,1043.6,1.068]
[1759402636298,0.85776427,1044.4,1043.6,1.068]
[1759402636491,0.85776427,1044.1,1043.6,1.068]
[1759402637093,0.85776427,1044.1,1043.7,1.014]
[1759402639598,0.85776427,1044.2,1043.7,1.014]
[1759402639798,0.85776427,1044.1,1043.7,1.014]
[1759402640098,0.85776427,1044.0,1043.7,1.014]
[1759402643202,0.85776427,1044.2,1043.7,1.014]
[1759402645698,0.85776427,1044.3,1043.7,1.014]
[1759402646503,0.85776427,1044.2,1043.7,1.014]
[1759402647802,0.85776427,1044.1,1043.7,1.014]
[1759402648904,0.85776427,1044.0,1043.7,1.014]
[1759402650306,0.85776427,1044.1,1043.7,1.014]
[1759402652506,0.85776427,1044.2,1043.7,1.014]
[1759402654204,0.85776427,1044.3,1043.7,1.014]
[1759402655709,0.85776427,1044.2,1043.7,1.014]
[1759402657312,0.85776427,1044.3,1043.7,1.014]
[1759402664017,0.85776427,1044.1,1043.7,1.014]
[1759402664213,0.85776427,1043.9,1043.7,1.014]
[1759402665413,0.85776427,1043.8,1043.7,1.014]
[1759402665618,1.28849905,1043.9,1043.7,1.014]
[1759402668219,1.28849905,1044.0,1043.7,1.014]
[1759402668415,0.85467208,1043.8,1043.7,1.014]
[1759402668716,1.28849905,1043.9,1043.7,1.014]
[1759402669019,1.28849905,1043.8,1043.7,1.014]
[1759402669717,1.28849905,1043.9,1043.7,1.014]
[1759402670620,1.28849905,1044.0,1043.7,1.014]
[1759402671318,0.8548569,1043.8,1043.7,1.014]
[1759402671520,1.28849905,1044.0,1043.7,1.014]
[1759402671718,1.28849905,1043.9,1043.7,1.014]
[1759402672017,1.28849905,1043.8,1043.7,1.014]
[1759402672823,2.13802037,1044.5,1043.7,1.014]
[1759402673122,1.28264356,1043.8,1043.7,1.014]
[1759402673422,2.13802037,1044.5,1043.7,1.014]
[1759402673822,1.28295428,1043.8,1043.7,1.014]
[1759402675725,0.85578205,1043.8,1043.7,1.014]
[1759402678325,0.85578205,1043.8,1043.7,1.014]
[1759402679124,0.85578205,1043.8,1043.5,1.026]
[1759402680427,0.85578205,1043.9,1043.5,1.026]
[1759402681228,0.85578205,1043.9,1043.5,2.267]
[1759402682426,0.85578205,1043.8,1043.5,2.267]
[1759402688538,0.85578205,1043.7,1043.5,2.267]
[1759402693340,0.85578205,1043.8,1043.5,2.267]
[1759402694341,0.85578205,1043.7,1043.5,2.267]
[1759402695946,0.85578205,1043.9,1043.5,2.267]
[1759402696146,0.85578205,1043.8,1043.5,2.267]
[1759402701149,0.85578205,1043.7,1043.5,2.267]
[1759402701551,0.85578205,1043.6,1043.5,2.267]
[1759402703452,0.85578205,1043.7,1043.5,2.267]
[1759402703751,0.85578205,1043.7,1043.5,1.241]
[1759402704247,0.85578205,1043.8,1043.5,1.241]
[1759402705952,0.85578205,1043.6,1043.5,1.241]
[1759402706154,0.85578205,1043.7,1043.5,1.241]
[1759402707450,0.85578205,1043.6,1043.5,1.241]
[1759402712054,0.85578205,1043.7,1043.5,1.241]